fUST/lending_fUST_20260114
["ID","MTS","AMOUNT","RATE_DAILY","PERIOD"]
[401700617,1768336810560,500.0,0.0001347,2]
[401700618,1768336810594,200.0,0.0001347,2]
[401700619,1768336810732,500.0,0.0001347,2]
[401700620,1768336810766,500.0,0.0001347,2]
[401700621,1768336810799,500.0,0.0001347,2]
[401700622,1768336810832,500.0,0.0001347,2]
[401700623,1768336810870,500.0,0.0001347,2]
[401700624,1768336810906,500.0,0.0001347,2]
[401700625,1768336810940,500.0,0.0001347,2]
[401700626,1768336810976,500.0,0.0001347,2]
[401700627,1768336811009,500.0,0.0001347,2]
[401700628,1768336811042,500.0,0.0001347,2]
[401700629,1768336811099,500.0,0.0001347,2]
[401700630,1768336811138,500.0,0.0001347,2]
[401700631,1768336811171,500.0,0.0001347,2]
[401700632,1768336811202,500.0,0.0001347,2]
[401700633,1768336811240,500.0,0.0001347,2]
[401700634,1768336811274,500.0,0.0001347,2]
[401700635,1768336811308,500.0,0.0001347,2]
[401700636,1768336811341,153.5119303,0.0001347,2]
[401700637,1768336811366,346.4880697,0.0001347,2]
[401700638,1768336811399,500.0,0.0001347,2]
[401700639,1768336811433,500.0,0.0001347,2]
[401700640,1768336811464,500.0,0.0001347,2]
[401700641,1768336811495,500.0,0.0001347,2]
[401700642,1768336811538,500.0,0.0001347,2]
[401700643,1768336811576,500.0,0.0001347,2]
[401700644,1768336811756,500.0,0.0001347,2]
[401700645,1768336811799,500.0,0.0001347,2]
[401700646,1768336811837,500.0,0.0001347,2]
[401700647,1768336811872,500.0,0.0001347,2]
[401700648,1768336811908,500.0,0.0001347,2]
[401700649,1768336811943,500.0,0.0001347,2]
[401700650,1768336811979,500.0,0.0001347,2]
[401700651,1768336812015,500.0,0.0001347,2]
[401700652,1768336812049,500.0,0.0001347,2]
[401700653,1768336812092,500.0,0.0001347,2]
[401700654,1768336812131,500.0,0.0001347,2]
[401700655,1768336812168,372.21266612,0.0001347,2]
[401700656,1768336812202,500.0,0.0001347,2]
[401700667,1768336820527,174.0025672,9.538e-05,2]
[401700672,1768336840001,107.30669698,0.00012718,2]
[401700673,1768336840027,891.69330302,0.00012718,2]
[401700677,1768336847068,500.0,0.0001347,2]
[401700678,1768336847101,500.0,0.0001347,2]
[401700679,1768336847133,500.0,0.0001347,2]
[401700680,1768336847389,500.0,0.0001347,2]
[401700681,1768336847423,500.0,0.0001347,2]
[401700682,1768336847456,500.0,0.0001347,2]
[401700683,1768336847731,500.0,0.0001347,2]
[401700684,1768336847871,500.0,0.0001347,2]
[401700685,1768336847905,500.0,0.0001347,2]
[401700686,1768336848022,500.0,0.0001347,2]
[401700687,1768336848172,500.0,0.0001347,2]
[401700688,1768336848206,500.0,0.0001347,2]
[401700689,1768336848323,650.0,0.0001347,2]
[401700691,1768336848467,500.0,0.0001347,2]
[401700692,1768336848502,500.0,0.0001347,2]
[401700693,1768336848540,500.0,0.0001347,2]
[401700694,1768336848577,500.0,0.0001347,2]
[401700695,1768336848615,458.31669698,0.0001347,2]
[401700696,1768336848640,41.68330302,0.0001347,2]
[401700697,1768336848677,500.0,0.0001347,2]
[401700698,1768336848718,500.0,0.0001347,2]
[401700699,1768336848757,650.0,0.0001347,2]
[401700700,1768336848789,500.0,0.0001347,2]
[401700701,1768336848869,500.0,0.0001347,2]
[401700702,1768336848918,500.0,0.0001347,2]
[401700710,1768336860601,500.0,0.0001347,2]
[401700711,1768336860639,500.0,0.0001347,2]
[401700712,1768336860672,500.0,0.0001347,2]
[401700713,1768336860724,500.0,0.0001347,2]
[401700714,1768336860756,500.0,0.0001347,2]
[401700715,1768336860791,500.0,0.0001347,2]
[401700716,1768336860826,615.06904493,0.0001347,2]
[401700717,1768336860859,500.0,0.0001347,2]
[401700718,1768336860897,500.0,0.0001347,2]
[401700719,1768336861117,500.0,0.0001347,2]
[401700720,1768336861150,500.0,0.0001347,2]
[401700721,1768336861318,500.0,0.0001347,2]
[401700722,1768336861387,500.0,0.0001347,2]
[401700723,1768336861420,193.25765205,0.0001347,2]
[401700724,1768336861443,306.74234795,0.0001347,2]
[401700725,1768336861479,500.0,0.0001347,2]
[401700726,1768336861516,500.0,0.0001347,2]
[401700727,1768336861552,500.0,0.0001347,2]
[401700728,1768336861586,500.0,0.0001347,2]
[401700729,1768336861621,500.0,0.0001347,2]
[401700730,1768336861653,500.0,0.0001347,2]
[401700731,1768336861688,500.0,0.0001347,2]
[401700732,1768336861724,500.0,0.0001347,2]
[401700733,1768336861759,500.0,0.0001347,2]
[401700734,1768336861798,500.0,0.0001347,2]
[401700735,1768336861832,500.0,0.0001347,2]
[401700736,1768336861866,500.0,0.0001347,2]
[401700737,1768336861905,500.0,0.0001347,2]
[401700738,1768336861937,500.0,0.0001347,2]
[401700739,1768336861982,500.0,0.0001347,2]
[401700740,1768336862019,500.0,0.0001347,2]
[401700741,1768336862054,500.0,0.0001347,2]
[401700742,1768336862088,500.0,0.0001347,2]
[401700743,1768336862239,300.0,0.00013469,2]
[401700746,1768336864092,393.26765205,0.00013273,2]
[401700747,1768336864115,106.73234795,0.00013273,2]
[401700749,1768336865649,500.0,0.0001347,2]
[401700750,1768336866965,278.02895934,0.00013273,2]
[401700753,1768336884240,288.95741207,0.00013273,2]
[401700754,1768336885743,500.0,0.00013273,2]
[401700767,1768336921730,301.7331461,0.0001272,2]
[401700823,1768337098197,2207.9235642,0.00012702,2]
[401700835,1768337221119,1501.834117,0.00012067,2]
[401700863,1768337315153,501.57633197,0.00013013,2]
[401700917,1768337353284,300.4281408,0.00012679,2]
[401700984,1768337413443,461.67526834,0.00013273,2]
[401700985,1768337421064,2230.315306,0.00013273,2]
[401700986,1768337428936,-500.0,0.00013273,2]
[401700987,1768337428966,-608.0,0.00013273,2]
[401701022,1768337431935,-343.35633056,0.00013436,2]
[401701025,1768337431945,-500.0,0.00013543,2]
[401701027,1768337431954,-648.0,0.00013543,2]
[401701028,1768337431964,-500.0,0.00013543,2]
[401701030,1768337431973,-151.0,0.000136,2]
[401701032,1768337431982,-151.0,0.000136,2]
[401701034,1768337431991,-306.64366944,0.00013633,2]
[401701038,1768337432003,-893.35633056,0.00013633,2]
[401701041,1768337432012,-300.0,0.00013634,2]
[401701044,1768337432021,-300.0,0.00013634,2]
[401701048,1768337432030,-300.0,0.00013634,2]
[401701049,1768337432039,-956.64366944,0.00013635,2]
[401701092,1768337438030,-5472.93036284,0.00013635,2]
[401701094,1768337438040,-300.0,0.00013673,2]
[401701096,1768337438050,-500.0,0.0001368,2]
[401701098,1768337438060,-648.0,0.0001368,2]
[401701100,1768337438069,-500.0,0.0001368,2]
[401701102,1768337438078,-500.0,0.00013698,2]
[401701104,1768337438087,-96.95913674,0.00013698,2]
[401701107,1768337438102,-403.04086326,0.00013698,2]
[401701109,1768337438111,-303.60300443,0.00013698,2]
[401701111,1768337438122,-196.39699557,0.00013698,2]
[401701113,1768337438130,-500.0,0.00013698,2]
[401701115,1768337438139,-500.0,0.00013698,2]
[401701117,1768337438148,-500.0,0.00013698,2]
[401701119,1768337438157,-500.0,0.00013698,2]
[401701121,1768337438167,-500.0,0.00013698,2]
[401701122,1768337438176,-500.0,0.00013698,2]
[401701123,1768337438185,-275.34431135,0.00013698,2]
[401701124,1768337438196,-224.65568865,0.00013698,2]
[401701125,1768337438205,-500.0,0.00013698,2]
[401701126,1768337438214,-500.0,0.00013698,2]
[401701127,1768337438223,-500.0,0.00013698,2]
[401701128,1768337438233,-500.0,0.00013698,2]
[401701129,1768337438242,-500.0,0.00013698,2]
[401701130,1768337438251,-222.32224437,0.00013698,2]
[401701131,1768337438261,-500.0,0.00013698,2]
[401701132,1768337438270,-1437.949683,0.00013699,2]
[401701133,1768337438279,-1000.0,0.00013699,2]
[401701134,1768337438288,-500.0,0.00013699,2]
[401701135,1768337438297,-500.0,0.00013699,2]
[401701136,1768337438306,-500.0,0.00013699,2]
[401701137,1768337438315,-500.0,0.00013699,2]
[401701138,1768337438324,-500.0,0.00013699,2]
[401701139,1768337438333,-500.0,0.00013699,2]
[401701140,1768337438343,-500.0,0.00013699,2]
[401701141,1768337438352,-500.0,0.00013699,2]
[401701142,1768337438361,-500.0,0.00013699,2]
[401701143,1768337438370,-500.0,0.00013699,2]
[401701144,1768337438379,-315.98837976,0.000137,2]
[401701145,1768337438388,-156.85127801,0.00013702,2]
[401701146,1768337438398,-2462.15774219,0.00013735,2]
[401701147,1768337438410,-7537.84225781,0.00013735,2]
[401701148,1768337438419,-7464.67719116,0.00013735,2]
[401701327,1768337440192,-2270.071,0.00013735,2]
[401701334,1768337440243,-265.25180884,0.00013735,2]
[401701336,1768337440253,-160.88457154,0.00013735,2]
[401701338,1768337440264,-1903.27946898,0.00013735,2]
[401701826,1768337445272,-1695.2777731,0.00013735,2]
[401701827,1768337445283,-971.15581075,0.00013735,2]
[401701833,1768337445328,-4042.36482029,0.00013735,2]
[401701835,1768337445340,-777.17506577,0.00013735,2]
[401701900,1768337445935,-449.86248957,0.00013735,2]
[401701902,1768337445944,-350.10675182,0.00013735,2]
[401701908,1768337445991,-3646.62324818,0.00013735,2]
[401701910,1768337446000,-1011.28076626,0.00013744,2]
[401701912,1768337446010,-10000.0,0.00013763,2]
[401701914,1768337446020,-101411.07981245,0.00013769,2]
[401704409,1768337477961,500.0,0.00030136,120]
[401704410,1768337478183,329.14098379,0.00030136,120]
[401704413,1768337482126,500.0,0.00013273,2]
[401704432,1768337605100,500.0,0.00013273,2]
[401704433,1768337703693,505.87242006,0.00013273,2]
[401704434,1768337728187,500.0,0.00013273,2]
[401704436,1768337809280,-594.0,0.00013595,2]
[401704437,1768338037586,-500.0,0.00013273,2]
[401704438,1768338037618,-608.0,0.00013273,2]
[401704439,1768338037648,-500.0,0.00013494,2]
[401704440,1768338037682,-500.0,0.00013631,2]
[401704441,1768338037859,-2947.48276633,0.00013668,2]
[401704442,1768338043443,-10000.01,0.00013668,2]
[401704444,1768338112697,164.29,8.445e-05,2]
[401704445,1768338113089,184.83,8.746e-05,2]
[401704446,1768338113480,205.36,9.048e-05,2]
[401704447,1768338175625,9445.53,0.0001265,2]
[401704448,1768338175647,10000.01,0.0001265,2]
[401704449,1768338175670,554.48,0.0001265,2]
[401704450,1768338205594,213.0939551,0.00012616,2]
[401704451,1768338428222,1335.87594091,0.00013087,3]
[401704495,1768338535179,786.32549834,0.00013087,3]
[401704523,1768338611670,-500.0,0.00013273,2]
[401704524,1768338611703,-608.0,0.00013273,2]
[401704525,1768338611734,-336.48920395,0.00013371,2]
[401704526,1768338611764,-570.0,0.0001341,2]
[401704527,1768338611796,-500.0,0.0001341,2]
[401704528,1768338611827,-251.84000003,0.00013547,2]
[401704529,1768338611856,-570.0,0.00013547,2]
[401704530,1768338611886,-500.0,0.00013547,2]
[401704531,1768338611914,-300.0,0.00013563,2]
[401704532,1768338611943,-300.0,0.00013563,2]
[401704533,1768338614375,-4374.13272172,0.00013564,2]
[401704534,1768338620517,-1251.74455656,0.00013564,2]
[401704535,1768338620549,-252.79070384,0.00013573,2]
[401704536,1768338620578,-300.0,0.00013596,2]
[401704571,1768338632187,-800.0,0.00013602,2]
[401704573,1768338632196,-431.3955753,0.00013632,2]
[401704715,1768338638248,-517.42876019,0.00013632,2]
[401704717,1768338638262,-188.13623303,0.00013632,2]
[401704718,1768338638274,-167.8767839,0.00013632,2]
[401704930,1768338640344,-2390.28449527,0.00013632,2]
[401704932,1768338640353,-2311.05500918,0.00013632,2]
[401704937,1768338640400,-2236.7872649,0.00013632,2]
[401704939,1768338640409,-7106.00355325,0.00013632,2]
[401704941,1768338640418,-1955.85464278,0.00013632,2]
[401705409,1768338645071,-3170.68801967,0.00013632,2]
[401705524,1768338646188,-2006.6125486,0.00013632,2]
[401705531,1768338646246,-1109.33907674,0.00013632,2]
[401705533,1768338646257,-1990.15082889,0.00013632,2]
[401705535,1768338646266,-523.13200083,0.00013633,2]
[401705537,1768338646275,-2092.52800334,0.00013633,2]
[401705539,1768338646284,-4708.18800751,0.00013633,2]
[401705541,1768338646293,-8370.11201335,0.00013633,2]
[401705543,1768338646302,-284.24014213,0.00013633,2]
[401705545,1768338646311,-202.75083062,0.00013641,2]
[401705547,1768338646321,-461.67526834,0.0001366,2]
[401705549,1768338646330,-2230.315306,0.0001366,2]
[401705551,1768338646339,-191.00082252,0.00013663,2]
[401705553,1768338646348,-500.0,0.00013663,2]
[401705555,1768338646358,-500.0,0.00013663,2]
[401705557,1768338646368,-500.0,0.00013663,2]
[401705559,1768338646377,-500.0,0.00013663,2]
[401705561,1768338646387,-500.0,0.00013663,2]
[401705563,1768338646395,-500.0,0.00013663,2]
[401705565,1768338646405,-163.14775736,0.00013663,2]
[401705567,1768338646414,-500.0,0.00013663,2]
[401705569,1768338646423,-500.0,0.00013663,2]
[401705571,1768338646440,-500.0,0.00013663,2]
[401705573,1768338646461,-500.0,0.00013663,2]
[401705575,1768338646477,-500.0,0.00013663,2]
[401705577,1768338646488,-500.0,0.00013663,2]
[401705579,1768338646499,-500.0,0.00013663,2]
[401705581,1768338646508,-500.0,0.00013663,2]
[401705583,1768338646521,-500.0,0.00013663,2]
[401705585,1768338646531,-500.0,0.00013663,2]
[401705587,1768338646540,-500.0,0.00013663,2]
[401705589,1768338646551,-500.0,0.00013663,2]
[401705591,1768338646560,-500.0,0.00013663,2]
[401705593,1768338646571,-350.88439941,0.00013663,2]
[401705595,1768338646581,-500.0,0.00013663,2]
[401705597,1768338646590,-500.0,0.00013663,2]
[401705599,1768338646599,-646.50690449,0.00013663,2]
[401705601,1768338646608,-500.0,0.00013663,2]
[401705603,1768338646619,-376.17327682,0.00013663,2]
[401705605,1768338646631,-500.0,0.00013663,2]
[401705608,1768338646643,-500.0,0.00013663,2]
[401705610,1768338646655,-500.0,0.00013663,2]
[401705612,1768338646667,-500.0,0.00013663,2]
[401705615,1768338646680,-500.0,0.00013663,2]
[401705617,1768338646690,-500.0,0.00013663,2]
[401705619,1768338646701,-500.0,0.00013663,2]
[401705621,1768338646712,-500.0,0.00013663,2]
[401705624,1768338646724,-500.0,0.00013663,2]
[401705626,1768338646736,-500.0,0.00013663,2]
[401705628,1768338646747,-500.0,0.00013663,2]
[401705630,1768338646758,-500.0,0.00013663,2]
[401705633,1768338646770,-500.0,0.00013663,2]
[401705635,1768338646782,-500.0,0.00013663,2]
[401705638,1768338646798,-500.0,0.00013663,2]
[401705640,1768338646808,-500.0,0.00013663,2]
[401705642,1768338646820,-500.0,0.00013663,2]
[401705644,1768338646833,-500.0,0.00013663,2]
[401705647,1768338646845,-500.0,0.00013663,2]
[401705649,1768338646859,-514.44253322,0.00013663,2]
[401705651,1768338646871,-500.0,0.00013663,2]
[401705654,1768338646882,-500.0,0.00013663,2]
[401705656,1768338646892,-500.0,0.00013663,2]
[401705658,1768338646903,-500.0,0.00013663,2]
[401705660,1768338646917,-500.0,0.00013663,2]
[401705663,1768338646928,-500.0,0.00013663,2]
[401705665,1768338646939,-500.0,0.00013663,2]
[401705667,1768338646951,-500.0,0.00013663,2]
[401705669,1768338646963,-530.04488539,0.00013667,2]
[401705671,1768338646974,-391.43671829,0.00013667,2]
[401705674,1768338646986,-530.04488539,0.00013667,2]
[401705676,1768338646996,-530.04488539,0.00013667,2]
[401705678,1768338647007,-530.04488539,0.00013667,2]
[401705680,1768338647021,-530.04488539,0.00013667,2]
[401705682,1768338647031,-530.04488539,0.00013667,2]
[401705684,1768338647041,-530.04488539,0.00013667,2]
[401705687,1768338647051,-530.04488539,0.00013667,2]
[401705689,1768338647064,-530.04488539,0.00013667,2]
[401705691,1768338647074,-530.04488539,0.00013667,2]
[401705693,1768338647086,-530.04488539,0.00013667,2]
[401705695,1768338647097,-530.04488539,0.00013667,2]
[401705698,1768338647108,-530.04488539,0.00013667,2]
[401705700,1768338647119,-530.04488539,0.00013667,2]
[401705702,1768338647131,-530.04488539,0.00013667,2]
[401705704,1768338647142,-530.04488539,0.00013667,2]
[401705707,1768338647153,-530.04488539,0.00013667,2]
[401705709,1768338647165,-530.04488539,0.00013667,2]
[401705711,1768338647176,-530.04488539,0.00013667,2]
[401705713,1768338647189,-530.04488539,0.00013667,2]
[401705716,1768338647200,-572.44847623,0.00013667,2]
[401705718,1768338647211,-572.44847623,0.00013667,2]
[401705720,1768338647221,-572.44847623,0.00013667,2]
[401705722,1768338647231,-572.44847623,0.00013667,2]
[401705724,1768338647240,-572.44847623,0.00013667,2]
[401705726,1768338647250,-572.44847623,0.00013667,2]
[401705728,1768338647260,-572.44847623,0.00013667,2]
[401705731,1768338647271,-572.44847623,0.00013667,2]
[401705733,1768338647282,-572.44847623,0.00013667,2]
[401705735,1768338647295,-174888.52912396,0.00013668,2]
[401705738,1768338647310,-3633.78067978,0.00013668,2]
[401706328,1768338689532,499.999999,0.00012,2]
[401706329,1768338703424,500.0,0.00013,2]
[401706330,1768338721358,-500.0,0.00013273,2]
[401706331,1768338721389,-202.23256304,0.00013568,2]
[401706332,1768338721422,-500.0,0.00013632,2]
[401706333,1768338721452,-201.10112483,0.00013632,2]
[401706334,1768338721482,-500.0,0.00013632,2]
[401706335,1768338721514,-500.0,0.00013632,2]
[401706336,1768338721545,-470.91732061,0.00013632,2]
[401706337,1768338721577,-238.50076717,0.00013632,2]
[401706338,1768338721608,-500.0,0.00013632,2]
[401706339,1768338721638,-264.01925298,0.00013632,2]
[401706340,1768338721668,-594.54271105,0.00013632,2]
[401706341,1768338721701,-500.0,0.00013632,2]
[401706342,1768338724140,-300.0,0.00013631,2]
[401706343,1768338724172,-551.44425333,0.00013632,2]
[401706344,1768338730403,-6880.58569486,0.00013668,2]
[401706345,1768338733401,-10000.01,0.00013668,2]
[401706346,1768338751833,-4922.64261846,0.00013568,2]
[401706347,1768338845435,500.0,0.00013,2]
[401706348,1768338891682,300.0,0.00012666,2]
[401706349,1768339033569,-500.0,0.00013273,2]
[401706350,1768339033601,-3145.30199336,0.00013346,3]
[401706351,1768339033636,-500.0,0.00013494,2]
[401706352,1768339033756,-909.40601328,0.00013547,3]
[401706353,1768339039362,-4428.75424658,0.00013547,3]
[401706354,1768339039401,-1142.50150684,0.00013568,2]
[401706355,1768339042549,-10000.01,0.00013568,2]
[401706356,1768339042784,-10000.01,0.00013568,2]
[401706357,1768339042933,-10000.01,0.00013568,2]
[401706358,1768339043082,-10000.01,0.00013568,2]
[401706359,1768339043195,-10000.01,0.00013568,2]
[401706360,1768339043301,-10000.01,0.00013568,2]
[401706361,1768339043407,-10000.01,0.00013568,2]
[401706362,1768339043545,-10000.01,0.00013568,2]
[401706363,1768339069931,-678.69,0.00012329,2]
[401706364,1768339107053,177.92,7.599e-05,2]
[401706365,1768339107472,213.51,7.903e-05,2]
[401706366,1768339107873,249.09,8.207e-05,2]
[401706367,1768339108319,284.68,8.511e-05,2]
[401706368,1768339108720,320.26,8.815e-05,2]
[401706369,1768339109133,355.85,9.119e-05,2]
[401706377,1768339324478,-392.24,0.000132,2]
[401706378,1768339324513,-607.0,0.000132,2]
[401706379,1768339324548,-300.0,0.00013272,2]
[401706380,1768339324583,-500.0,0.00013273,2]
[401706381,1768339324617,-500.13491524,0.00013273,2]
[401706382,1768339324651,-500.0,0.00013273,2]
[401706383,1768339324684,-500.14204238,0.00013273,2]
[401706384,1768339324716,-500.0,0.00013273,2]
[401706385,1768339324966,-306.76972099,0.00013273,2]
[401706386,1768339324998,-500.0,0.00013273,2]
[401706387,1768339325030,-388.59749155,0.00013273,2]
[401706388,1768339330405,-10.24165968,0.00013273,2]
[401706389,1768339330435,-500.0,0.00013273,2]
[401706390,1768339330465,-500.0,0.00013273,2]
[401706391,1768339330493,-205.84,0.00013273,2]
[401706392,1768339330524,-181.328,0.00013297,2]
[401706393,1768339330554,-2521.00555062,0.00013467,2]
[401706394,1768339330741,-572.3881967,0.00013467,2]
[401706395,1768339333448,-3029.07334931,0.0001318,2]
[401706396,1768339333481,-1590.7913827,0.00013467,2]
[401706397,1768339333511,-228.8385003,0.00013468,2]
[401706398,1768339333576,-302.60353538,0.00013494,2]
[401706399,1768339373733,159.71,7.74e-05,2]
[401706400,1768339374164,182.53,8.026e-05,2]
[401706401,1768339374557,205.34,8.313e-05,2]
[401706402,1768339374943,228.16,8.6e-05,2]
[401706403,1768339437237,-2930.15744442,0.00012869,2]
[401706404,1768339437299,-3363.95511116,0.00012869,2]
[401706405,1768339443316,-775.74,0.00012869,2]
[401706406,1768339443349,-500.0,0.00013273,2]
[401706407,1768339443380,-500.0,0.00013273,2]
[401706408,1768339443415,-300.0,0.00013493,2]
[401706409,1768339443446,-261.39646462,0.00013494,2]
[401706410,1768339443476,-500.0,0.00013494,2]
[401706411,1768339443506,-500.0,0.00013494,2]
[401706412,1768339443784,-3325.73707076,0.00013494,2]
[401706413,1768339446493,-19.2693538,0.00013494,2]
[401706414,1768339446523,-500.0,0.00013494,2]
[401706415,1768339446556,-451.73993935,0.000135,2]
[401706416,1768339446587,-329.75941987,0.0001352,2]
[401706417,1768339446617,-1713.06422053,0.00013547,3]
[401706418,1768339446646,-451.73993932,0.00013555,2]
[401706419,1768339446676,-461.67526834,0.0001356,2]
[401706420,1768339446810,-2145.51371758,0.0001356,2]
[401706421,1768339449423,-84.80158842,0.0001356,2]
[401706422,1768339449453,-224.05743524,0.0001356,2]
[401706423,1768339449483,-500.0,0.00013566,2]
[401706424,1768339449516,-500.0,0.00013566,2]
[401706425,1768339449546,-155.93272251,0.00013566,2]
[401706426,1768339449576,-500.0,0.00013566,2]
[401706427,1768339449604,-500.0,0.00013566,2]
[401706428,1768339449633,-500.0,0.00013566,2]
[401706429,1768339449663,-500.0,0.00013566,2]
[401706430,1768339449693,-500.0,0.00013566,2]
[401706431,1768339449720,-500.0,0.00013566,2]
[401706432,1768339449747,-505.02772207,0.00013566,2]
[401706433,1768339449950,-60.37106352,0.00013566,2]
[401706434,1768339455514,-439.62893648,0.00013566,2]
[401706435,1768339455544,-500.0,0.00013566,2]
[401706436,1768339455573,-500.0,0.00013566,2]
[401706437,1768339455602,-473.15469929,0.00013566,2]
[401706438,1768339455631,-500.0,0.00013566,2]
[401706439,1768339455661,-500.0,0.00013566,2]
[401706440,1768339455690,-500.0,0.00013566,2]
[401706441,1768339455721,-500.0,0.00013566,2]
[401706442,1768339455750,-500.0,0.00013566,2]
[401706443,1768339455781,-500.0,0.00013566,2]
[401706444,1768339455966,-174.44272846,0.00013566,2]
[401706445,1768339458693,-325.55727154,0.00013566,2]
[401706446,1768339458723,-500.0,0.00013566,2]
[401706447,1768339458754,-500.0,0.00013566,2]
[401706448,1768339458784,-500.0,0.00013566,2]
[401706449,1768339458814,-500.0,0.00013566,2]
[401706450,1768339458844,-500.0,0.00013566,2]
[401706451,1768339458874,-500.0,0.00013566,2]
[401706452,1768339458903,-500.0,0.00013566,2]
[401706453,1768339458931,-500.0,0.00013566,2]
[401706454,1768339458960,-500.0,0.00013566,2]
[401706455,1768339459137,-348.89545692,0.00013566,2]
[401706457,1768339477268,-151.10454308,0.00013566,2]
[401706458,1768339477304,-327.46395472,0.00013566,2]
[401706459,1768339477337,-500.0,0.00013566,2]
[401706460,1768339477370,-447.12682656,0.00013566,2]
[401706461,1768339477402,-500.0,0.00013566,2]
[401706462,1768339477434,-500.0,0.00013566,2]
[401706463,1768339477467,-500.0,0.00013566,2]
[401706464,1768339477498,-500.0,0.00013566,2]
[401706465,1768339477529,-500.0,0.00013566,2]
[401706466,1768339477560,-500.0,0.00013566,2]
[401706467,1768339477591,-500.0,0.00013566,2]
[401706468,1768339477862,-500.0,0.00013566,2]
[401706469,1768339477894,-500.0,0.00013566,2]
[401706470,1768339477925,-500.0,0.00013566,2]
[401706471,1768339477955,-500.0,0.00013566,2]
[401706472,1768339477986,-500.0,0.00013566,2]
[401706473,1768339478017,-500.0,0.00013566,2]
[401706474,1768339478051,-500.0,0.00013566,2]
[401706475,1768339478082,-500.0,0.00013566,2]
[401706476,1768339478112,-500.0,0.00013566,2]
[401706477,1768339478292,-500.0,0.00013566,2]
[401706478,1768339478424,-500.0,0.00013566,2]
[401706479,1768339478453,-500.0,0.00013566,2]
[401706480,1768339478482,-211.25711824,0.00013566,2]
[401706481,1768339478512,-500.0,0.00013566,2]
[401706482,1768339478541,-500.0,0.00013566,2]
[401706483,1768339478570,-500.0,0.00013566,2]
[401706484,1768339478601,-500.0,0.00013566,2]
[401706485,1768339478632,-500.0,0.00013566,2]
[401706486,1768339478663,-500.0,0.00013566,2]
[401706487,1768339478693,-500.0,0.00013566,2]
[401706488,1768339478722,-77.49576352,0.00013566,2]
[401706489,1768339478755,-422.50423648,0.00013566,2]
[401706490,1768339478785,-500.0,0.00013566,2]
[401706491,1768339478814,-500.0,0.00013566,2]
[401706492,1768339478844,-500.0,0.00013566,2]
[401706493,1768339478872,-500.0,0.00013566,2]
[401706494,1768339478901,-500.0,0.00013566,2]
[401706495,1768339478931,-500.0,0.00013566,2]
[401706496,1768339478960,-500.0,0.00013566,2]
[401706497,1768339478991,-251.2507909,0.00013566,2]
[401706498,1768339479021,-500.0,0.00013566,2]
[401706499,1768339479050,-152.49994524,0.00013566,2]
[401706500,1768339479127,-347.50005476,0.00013566,2]
[401706501,1768339479158,-500.0,0.00013566,2]
[401706502,1768339479190,-390.61283829,0.00013566,2]
[401706503,1768339479225,-500.0,0.00013566,2]
[401706504,1768339479256,-500.0,0.00013566,2]
[401706505,1768339479288,-427.98773049,0.00013566,2]